bitfinex/quotes_SOLUSD_20250917
["timestamp","ask_amount","ask_price","bid_price","bid_amount"]
[1758130524666,0.68,234.75,234.65,26.0]
[1758130524873,0.68,234.75,234.71,5.74516309]
[1758130525177,0.68,234.75,234.72,5.74516309]
[1758130525355,0.68,234.77,234.72,5.74516309]
[1758130525558,0.68,234.76,234.72,5.74516309]
[1758130525774,0.68,234.76,234.72,2.40376553]
[1758130525977,0.68,234.76,234.73,2.40376553]
[1758130526274,2.40376553,234.79,234.73,2.40376553]
[1758130526482,2.40376553,234.8,234.74,2.40376553]
[1758130526660,0.68,234.78,234.74,2.40376553]
[1758130526860,0.68,234.78,234.75,4.2598509]
[1758130527160,0.68,234.77,234.75,4.2598509]
[1758130527376,0.68,234.79,234.75,4.2598509]
[1758130527594,0.68,234.78,234.75,4.2598509]
[1758130528003,0.68,234.77,234.75,4.2598509]
[1758130529603,0.68,234.79,234.75,4.2598509]
[1758130529774,0.68,234.78,234.75,4.2598509]
[1758130529973,0.68,234.77,234.71,10.65114289]
[1758130530193,0.68,234.77,234.72,0.66]
[1758130530379,0.68,234.77,234.73,2.40376553]
[1758130530581,4.25886351,234.81,234.73,3.06376553]
[1758130530813,0.68,234.77,234.74,2.40376553]
[1758130531100,0.68,234.8,234.74,2.40376553]
[1758130531313,0.68,234.8,234.75,2.40376553]
[1758130531512,0.68,234.8,234.74,6.66365301]
[1758130531801,0.68,234.8,234.76,2.40376553]
[1758130532295,0.68,234.8,234.75,2.40376553]
[1758130532598,0.68,234.79,234.75,2.40376553]
[1758130533097,0.68,234.79,234.74,2.40376553]
[1758130533297,0.68,234.79,234.74,3.06376553]
[1758130533477,6.66259126,234.81,234.71,4.92057688]
[1758130533478,0.68,234.78,234.71,4.92057688]
[1758130533793,0.03,234.77,234.74,2.40376553]
[1758130534300,0.03,234.77,234.74,3.07376553]
[1758130534493,0.03,234.77,234.71,14.91201908]
[1758130534494,0.68,234.76,234.71,4.26057688]
[1758130534681,0.03,234.77,234.71,6.66434241]
[1758130534887,0.68,234.75,234.71,4.26057688]
[1758130535490,2.40376553,234.73,234.67,4.26119908]
[1758130535881,3.08376553,234.73,234.67,4.26119908]
[1758130536294,2.40376553,234.72,234.67,4.26119908]
[1758130536603,3.08376553,234.71,234.65,4.26166631]
[1758130537390,2.40376553,234.7,234.65,4.26166631]
[1758130537588,3.08376553,234.7,234.65,4.26166631]
[1758130538187,0.68,234.7,234.65,4.93166631]
[1758130538987,0.68,234.69,234.63,6.66574347]
[1758130539297,0.68,234.69,234.63,7.33574347]
[1758130539500,3.08376553,234.69,234.63,4.93197794]
[1758130540108,0.68,234.69,234.63,7.33574347]
[1758130541686,4.94094194,234.69,234.63,7.33574347]
[1758130542005,0.68,234.68,234.61,3.13376553]
[1758130542205,0.68,234.68,234.62,7.33592409]
[1758130542411,0.68,234.68,234.62,4.93215856]
[1758130542790,0.68,234.68,234.62,7.33592409]
[1758130543112,0.68,234.68,234.62,6.66592409]
[1758130543411,2.40376553,234.69,234.63,0.67]
[1758130543614,3.08376553,234.72,234.65,2.40376553]
[1758130543782,32.92,234.71,234.66,0.67]
[1758130543984,0.68,234.7,234.65,3.07376553]
[1758130544185,2.40376553,234.69,234.64,4.26184793]
[1758130544382,2.40376553,234.65,234.61,0.06]
[1758130544618,2.40376553,234.65,234.61,4.32239186]
[1758130544801,2.40376553,234.65,234.61,4.99239186]
[1758130545001,26.0,234.67,234.61,4.32239186]
[1758130545192,0.68,234.64,234.61,0.06]
[1758130545391,2.40376553,234.63,234.61,0.06]
[1758130545600,2.40376553,234.62,234.61,0.06]
[1758130545891,3.08376553,234.62,234.61,0.06]
[1758130546417,7.34597676,234.62,234.61,0.06]
[1758130547098,3.08376553,234.62,234.61,0.06]
[1758130547812,7.34597676,234.62,234.61,0.06]
[1758130548015,4.94221123,234.62,234.61,0.06]
[1758130548207,7.34597676,234.62,234.61,0.06]
[1758130550712,20.94157077,234.62,234.61,0.06]
[1758130552605,39.59559401,234.59,234.58,0.06]
[1758130552807,75.05935954,234.59,234.58,0.06]
[1758130553113,75.73935954,234.59,234.58,0.06]
[1758130554421,80.00211583,234.59,234.58,0.06]
[1758130554722,46.94211583,234.59,234.58,0.06]
[1758130554915,80.00211583,234.59,234.58,0.06]
[1758130555513,79.98211583,234.59,234.58,0.06]
[1758130557334,46.94211583,234.59,234.58,0.06]
[1758130557541,79.30211583,234.59,234.58,0.06]
[1758130557836,31.8040627,234.59,234.58,0.06]
[1758130558137,64.8440627,234.59,234.58,0.06]
[1758130558632,32.4740627,234.59,234.58,0.06]
[1758130558813,65.5140627,234.59,234.58,0.06]
[1758130560426,65.5140627,234.59,234.56,0.06]
[1758130560427,13.59559401,234.58,234.56,0.06]
[1758130560606,15.13690042,234.57,234.56,0.06]
[1758130560809,15.13690042,234.57,234.54,0.06]
[1758130560810,39.59559401,234.55,234.54,0.06]
[1758130561073,74.23690042,234.55,234.54,0.06]
[1758130561235,74.90690042,234.55,234.44,0.7]
[1758130561440,16.67820683,234.53,234.44,0.7]
[1758130561942,21.61205367,234.53,234.44,0.7]
[1758130562444,4.26384684,234.53,234.41,10.66490447]
[1758130562612,52.52074726,234.53,234.49,0.7]
[1758130562811,53.19074726,234.53,234.46,0.7]
[1758130563739,53.19074726,234.53,234.48,0.7]
[1758130564040,53.19074726,234.53,234.45,0.68]
[1758130564241,53.19074726,234.53,234.46,0.68]
[1758130564436,53.17074726,234.53,234.46,0.68]
[1758130564606,53.17074726,234.53,234.47,0.68]
[1758130565335,53.17074726,234.53,234.44,0.68]
[1758130565515,54.71205367,234.53,234.44,0.68]
[1758130566025,54.71205367,234.53,234.41,0.68]
[1758130566218,54.71205367,234.53,234.46,0.68]
[1758130566415,21.61205367,234.53,234.41,4.26596527]
[1758130566743,54.71205367,234.53,234.45,0.68]
[1758130568120,54.69205367,234.53,234.45,0.68]
[1758130568428,59.3159729,234.53,234.46,0.68]
[1758130569642,26.2359729,234.53,234.46,0.68]
[1758130569937,26.0,234.5,234.43,0.68]
[1758130570141,37.34457418,234.49,234.44,0.68]
[1758130570641,48.00600963,234.49,234.45,0.68]
[1758130570828,48.67600963,234.49,234.43,0.68]
[1758130571225,1.54130641,234.44,234.43,0.68]
[1758130571428,34.62130641,234.44,234.43,0.68]
[1758130574129,38.88679627,234.44,234.41,0.68]
[1758130574440,1.54130641,234.42,234.37,0.2]
[1758130574742,1.54130641,234.38,234.37,0.2]
[1758130574944,34.62130641,234.38,234.37,0.2]
[1758130575633,38.88788205,234.38,234.37,0.2]
[1758130575842,38.90788205,234.38,234.37,0.2]
[1758130576440,6.47788205,234.38,234.37,0.2]
[1758130576648,38.90788205,234.38,234.37,0.2]
[1758130577225,0.67,234.41,234.37,0.2]
[1758130577445,1.54130641,234.4,234.38,0.68]
[1758130577628,33.1,234.39,234.38,0.68]
[1758130577822,34.66130641,234.39,234.38,0.68]
[1758130578848,34.66130641,234.39,234.37,0.2]
[1758130579141,34.66130641,234.39,234.38,0.68]
[1758130579344,34.66130641,234.39,234.37,0.2]
[1758130579531,34.66130641,234.39,234.37,0.88]
[1758130579930,1.54130641,234.38,234.37,0.88]
[1758130580129,34.66130641,234.39,234.37,0.88]
[1758130580332,1.54130641,234.38,234.37,0.2]
[1758130581345,34.66130641,234.38,234.37,0.2]
[1758130582121,38.92788205,234.38,234.37,0.2]
[1758130582524,1.70987668,234.47,234.37,0.2]
[1758130582525,33.14,234.39,234.37,2.42130641]
[1758130582856,13.59559401,234.46,234.38,2.22130641]
[1758130583022,33.16,234.45,234.39,0.68]
[1758130583217,1.54130641,234.44,234.39,0.68]
[1758130583456,34.70130641,234.43,234.4,0.68]
[1758130583948,34.70130641,234.43,234.41,0.68]
[1758130583949,33.16,234.43,234.41,0.68]
[1758130584244,33.16,234.43,234.42,0.68]
[1758130585745,33.16,234.43,234.4,0.68]
[1758130585932,34.70130641,234.43,234.4,0.68]
[1758130586145,1.54130641,234.41,234.37,0.88]
[1758130586352,1.54130641,234.41,234.38,0.68]
[1758130586528,39.63702932,234.43,234.38,0.68]
[1758130586725,38.96702932,234.43,234.38,0.68]
[1758130587524,33.18,234.42,234.39,4.94638136]
[1758130587723,33.18,234.42,234.4,0.68]
[1758130588031,33.18,234.45,234.41,2.22130641]
[1758130588247,33.18,234.45,234.41,0.68]
[1758130588426,33.18,234.45,234.42,0.68]
[1758130589349,33.18,234.45,234.4,0.68]
[1758130589537,33.18,234.45,234.39,5.80768777]
[1758130589738,33.18,234.45,234.41,0.68]
[1758130590228,37.44530855,234.45,234.41,0.68]
[1758130590933,37.44530855,234.45,234.39,4.94638136]
[1758130591145,38.98661496,234.45,234.39,0.68]
[1758130591740,38.98661496,234.45,234.39,4.94636345]
[1758130592142,37.44530855,234.45,234.39,6.48766986]
[1758130592560,38.98661496,234.45,234.39,6.48766986]
[1758130593955,1.54130641,234.44,234.39,4.94636345]
[1758130594155,33.18,234.45,234.4,0.72]
[1758130594358,33.18,234.45,234.41,0.72]
[1758130594546,33.18,234.45,234.42,0.72]
[1758130594755,132.8,234.48,234.43,2.26130641]
[1758130594936,165.96,234.48,234.44,0.72]
[1758130595130,165.96,234.48,234.45,0.72]
[1758130595531,165.96,234.48,234.43,1.54130641]
[1758130595730,165.96,234.48,234.44,0.72]
[1758130596941,170.92483098,234.48,234.43,4.26550352]
[1758130597146,171.76613739,234.48,234.43,4.26550352]
[1758130597345,0.7,234.47,234.43,4.26550352]
[1758130597665,167.50130641,234.48,234.43,4.98550352]
[1758130597847,168.20130641,234.48,234.43,4.98550352]
[1758130598045,33.16,234.48,234.44,0.72]
[1758130598242,33.16,234.48,234.44,2.26130641]
[1758130599348,33.16,234.48,234.44,6.52663205]
[1758130599549,33.16,234.48,234.44,4.98532564]
[1758130599744,35.40130641,234.48,234.42,2.26130641]
[1758130599962,35.40130641,234.48,234.43,4.26563853]
[1758130600336,0.7,234.47,234.43,4.26563853]
[1758130600532,38.96612687,234.48,234.41,4.98586471]
[1758130600742,2.24130641,234.46,234.41,4.26586471]
[1758130601070,0.7,234.45,234.41,4.26586471]
[1758130601254,0.7,234.46,234.41,4.98586471]
[1758130601763,6.50643419,234.46,234.41,0.72]
[1758130601960,5.80643419,234.46,234.4,5.8075016]
[1758130602164,1.54130641,234.46,234.4,5.8075016]
[1758130602849,0.7,234.47,234.41,0.72]
[1758130603055,33.16,234.48,234.43,1.54130641]
[1758130603256,33.16,234.48,234.44,0.72]
[1758130603947,33.16,234.48,234.44,4.98540828]
[1758130604150,24.25480341,234.54,234.45,0.72]
[1758130604151,0.7,234.53,234.45,0.72]
[1758130604465,33.8,234.53,234.45,0.72]
[1758130605250,33.1,234.53,234.45,0.72]
[1758130606569,33.1,234.53,234.5,1.54130641]
[1758130606949,0.03,234.52,234.5,1.54130641]
[1758130608068,0.03,234.52,234.5,5.80555614]
[1758130609051,0.03,234.52,234.47,4.26487449]
[1758130609376,0.7,234.51,234.47,4.26487449]
[1758130609544,1.57130641,234.52,234.47,4.26487449]
[1758130609748,0.7,234.5,234.47,4.26487449]
[1758130609965,2.27130641,234.52,234.47,4.26487449]
[1758130610162,0.7,234.51,234.46,4.26511984]
[1758130610349,1.54130641,234.48,234.41,4.2660296]
[1758130610666,1.54130641,234.46,234.41,4.2660296]
[1758130610969,1.54130641,234.46,234.41,4.9860296]
[1758130611166,2.24130641,234.47,234.41,4.9860296]
[1758130616977,1.54130641,234.46,234.41,4.9860296]
[1758130617178,2.24130641,234.47,234.42,0.7]
[1758130617561,26.0,234.48,234.43,0.7]
[1758130617760,33.12,234.51,234.46,1.54130641]
[1758130617962,33.12,234.51,234.47,2.24130641]
[1758130618277,33.12,234.51,234.48,2.24130641]
[1758130619577,33.12,234.51,234.47,4.26480942]
[1758130619756,33.12,234.51,234.47,6.67387559]
[1758130619961,33.12,234.51,234.47,7.37387559]
[1758130621065,0.03,234.52,234.5,2.40906617]
[1758130621287,0.03,234.52,234.51,2.40906617]
[1758130621583,0.03,234.55,234.52,14.92410028]
[1758130621765,0.03,234.55,234.54,2.40906617]
[1758130622153,0.03,234.55,234.54,3.10906617]
[1758130623470,0.03,234.55,234.54,16.70466018]
[1758130623674,0.03,234.55,234.54,20.96832522]
[1758130623974,0.03,234.55,234.54,54.06832522]
[1758130625792,0.03,234.66,234.58,13.59559401]
[1758130626101,0.03,234.66,234.59,49.10466018]
[1758130626585,0.03,234.66,234.59,51.52176386]
[1758130627776,0.03,234.66,234.59,20.27545398]
[1758130627980,0.03,234.66,234.59,22.68452015]
[1758130628290,0.03,234.66,234.59,55.78452015]
[1758130629864,0.03,234.66,234.59,22.68452015]
[1758130630067,0.03,234.66,234.59,55.78452015]
[1758130631561,0.03,234.66,234.59,22.68452015]
[1758130631779,0.03,234.66,234.59,55.76452015]
[1758130633968,0.67,234.64,234.59,41.43892614]
[1758130634204,0.67,234.64,234.59,40.44182246]
[1758130635687,0.67,234.64,234.59,7.38182246]
[1758130635887,0.7,234.6,234.59,4.26275629]
[1758130636190,0.03,234.6,234.59,37.32275629]
[1758130636600,0.03,234.6,234.59,39.73182246]
[1758130637285,0.03,234.6,234.59,40.44182246]
[1758130637597,0.03,234.6,234.59,6.67182246]
[1758130637895,0.03,234.6,234.59,39.73182246]
[1758130638091,0.03,234.6,234.59,40.44182246]
[1758130638276,0.03,234.6,234.59,54.03741647]
[1758130638697,0.03,234.6,234.59,55.74473875]
[1758130638870,0.03,234.6,234.59,54.03741647]
[1758130639073,0.03,234.6,234.59,55.76466588]
[1758130642586,0.03,234.6,234.59,135.0909415]
[1758130642790,0.03,234.6,234.59,134.66466588]
[1758130643507,0.03,234.66,234.63,13.59559401]
[1758130643691,0.03,234.66,234.65,20.26632649]
[1758130644090,0.03,234.66,234.65,20.97632649]
[1758130644290,0.03,234.66,234.65,23.38539266]
[1758130646796,0.03,234.66,234.65,20.97632649]
[1758130646984,0.03,234.66,234.65,23.38539266]
[1758130649514,0.03,234.66,234.65,23.81155929]
[1758130649715,0.03,234.69,234.68,46.2657817]
[1758130649893,0.03,234.69,234.68,79.3057817]
[1758130650093,0.03,234.69,234.68,80.0157817]
[1758130650297,0.03,234.69,234.68,79.3057817]
[1758130650808,0.03,234.69,234.68,46.2657817]
[1758130650993,0.03,234.69,234.68,43.85671553]
[1758130651187,0.03,234.69,234.68,79.3057817]
[1758130651815,0.03,234.69,234.68,46.9757817]
[1758130652012,0.03,234.69,234.68,80.0157817]
[1758130652623,0.03,234.69,234.68,79.2857817]
[1758130652998,0.03,234.69,234.68,79.9957817]
[1758130653619,0.03,234.69,234.68,46.9757817]
[1758130653915,0.03,234.69,234.68,79.9957817]
[1758130654216,0.03,234.69,234.68,46.9757817]
[1758130654399,0.03,234.69,234.68,79.9957817]
[1758130654918,0.03,234.69,234.68,46.9757817]
[1758130655127,0.03,234.69,234.68,79.9957817]
[1758130659634,1e-08,234.71,234.68,57.62858551]
[1758130659809,1e-08,234.71,234.7,16.00466018]
[1758130660203,1e-08,234.71,234.7,16.66466018]
[1758130660630,0.67,234.8,234.7,16.66466018]
[1758130660836,26.0,234.86,234.68,14.91392533]
[1758130660837,0.67,234.79,234.74,13.59559401]
[1758130661033,26.0,234.84,234.78,2.40906617]
[1758130661233,26.0,234.84,234.8,2.40906617]
[1758130661523,26.0,234.84,234.8,6.66800995]
[1758130661826,0.67,234.83,234.8,39.64800995]
[1758130662034,0.67,234.82,234.8,39.64800995]
[1758130662208,0.67,234.81,234.8,39.64800995]
[1758130663218,0.67,234.81,234.79,2.40906617]
[1758130663422,4.25825099,234.84,234.8,32.98]
[1758130663819,0.67,234.83,234.8,32.98]
[1758130664019,0.67,234.82,234.79,2.40906617]
[1758130664226,0.67,234.81,234.8,32.96]
[1758130664925,0.67,234.81,234.77,4.25946651]
[1758130665121,0.67,234.8,234.78,37.21926741]
[1758130665434,0.67,234.79,234.78,37.21926741]
[1758130665627,0.67,234.79,234.78,39.62833358]
[1758130666330,0.67,234.82,234.78,39.62833358]
[1758130666530,0.67,234.81,234.8,2.40906617]
[1758130666830,0.67,234.81,234.8,35.34906617]
[1758130667218,0.67,234.81,234.8,39.60800995]
[1758130667611,0.67,234.83,234.8,39.60800995]
[1758130667939,0.67,234.82,234.81,2.40906617]
[1758130668830,0.67,234.82,234.81,6.66782857]
[1758130669017,0.67,234.82,234.81,32.94]
[1758130669216,0.67,234.82,234.8,2.40906617]
[1758130669517,6.66692907,234.86,234.8,2.40906617]
[1758130669711,6.66692907,234.86,234.81,32.94]
[1758130669907,0.67,234.85,234.81,32.94]
[1758130670110,26.0,234.87,234.81,4.2587537]
[1758130670111,0.67,234.84,234.81,4.2587537]
[1758130670319,0.67,234.83,234.81,37.1987537]
[1758130670536,0.67,234.82,234.81,37.1987537]
[1758130670742,0.67,234.84,234.81,39.60781987]
[1758130670929,26.0,234.87,234.81,39.60781987]
[1758130671137,0.67,234.86,234.81,39.60781987]
[1758130671330,0.67,234.85,234.81,39.60781987]
[1758130671538,0.67,234.85,234.83,2.40906617]
[1758130672323,0.67,234.85,234.83,6.66735266]
[1758130672925,0.67,234.85,234.83,39.60735266]
[1758130673249,0.67,234.87,234.84,2.40906617]
[1758130673453,0.67,234.86,234.84,2.40906617]
[1758130673745,0.67,234.85,234.84,32.94]
[1758130674040,0.67,234.85,234.83,6.66735266]
[1758130674245,0.67,234.85,234.83,39.60735266]
[1758130674929,0.67,234.85,234.83,37.19828649]
[1758130675524,0.67,234.87,234.83,37.19828649]
[1758130675727,0.67,234.87,234.83,39.60735266]
[1758130675927,0.67,234.86,234.83,39.60735266]
[1758130676164,28.40906617,234.9,234.83,39.60735266]
[1758130676332,0.67,234.85,234.83,39.60735266]
[1758130676526,0.67,234.87,234.83,39.60735266]
[1758130676836,0.67,234.87,234.83,6.66735266]
[1758130677049,0.67,234.86,234.84,32.94]
[1758130678053,0.65,234.86,234.84,32.94]
[1758130678652,0.65,234.86,234.82,4.25858104]
[1758130678863,0.65,234.86,234.83,32.94]
[1758130679745,0.65,234.86,234.83,37.19824991]
[1758130680153,0.65,234.86,234.83,4.25824991]
[1758130680546,0.65,234.85,234.83,37.19824991]
[1758130680739,0.65,234.85,234.83,4.25824991]
[1758130680938,4.90755271,234.88,234.83,4.25824991]
[1758130681264,0.65,234.87,234.83,4.25824991]
[1758130682535,0.65,234.86,234.82,4.95856884]
[1758130682737,0.65,234.86,234.82,37.89856884]
[1758130683454,0.65,234.85,234.81,32.94]
[1758130683646,1.56700177,234.87,234.81,32.94]
[1758130683853,0.65,234.84,234.81,32.94]
[1758130684439,0.65,234.84,234.81,32.92]
[1758130684652,5.82482577,234.87,234.81,32.92]
[1758130684960,6.51482577,234.87,234.81,33.63]
[1758130685156,0.69,234.86,234.81,33.63]
[1758130685550,0.69,234.86,234.81,37.8886567]
[1758130685857,0.69,234.85,234.81,37.1786567]
[1758130686047,0.69,234.84,234.81,37.1786567]
[1758130686562,2.22700177,234.83,234.76,0.71]
[1758130686743,0.69,234.83,234.76,0.71]
[1758130686941,0.69,234.83,234.77,32.92]
[1758130687141,0.69,234.82,234.77,32.92]
[1758130687342,14.93201014,234.87,234.77,33.63]
[1758130687549,0.69,234.82,234.78,4.25930658]
[1758130688068,0.69,234.85,234.79,0.71]
[1758130688561,0.69,234.85,234.77,32.92]
[1758130688733,0.69,234.85,234.78,0.71]
[1758130689638,0.69,234.85,234.79,4.25912517]
[1758130689842,0.69,234.84,234.79,4.25912517]
[1758130690045,0.69,234.84,234.79,4.96912517]
[1758130690249,0.69,234.84,234.8,0.71]
[1758130690459,0.69,234.84,234.79,4.25912517]
[1758130690642,0.69,234.84,234.8,0.71]
[1758130691562,5.7948619,234.86,234.78,4.25930658]
[1758130691865,0.69,234.83,234.78,4.25930658]
[1758130692167,0.69,234.82,234.78,4.25930658]
[1758130692543,0.69,234.82,234.78,4.96930658]
[1758130693265,0.69,234.86,234.8,1.53700177]
[1758130693464,0.69,234.85,234.8,1.53700177]
[1758130693848,0.69,234.85,234.8,2.24700177]
[1758130694046,0.69,234.85,234.81,0.71]
[1758130695055,0.69,234.85,234.81,4.96865107]
[1758130695270,0.69,234.85,234.81,4.25865107]
[1758130696267,0.72,234.87,234.82,0.71]
[1758130696570,0.69,234.86,234.82,0.71]
[1758130696778,0.69,234.86,234.81,4.25865107]
[1758130696947,0.69,234.85,234.81,4.25865107]
[1758130697153,0.69,234.85,234.81,4.96865107]
[1758130698372,0.69,234.84,234.79,4.25896663]
[1758130698554,4.25791006,234.86,234.75,36.64937263]
[1758130698555,2.22700177,234.83,234.77,4.25944559]
[1758130698762,30.25791006,234.86,234.77,4.25944559]
[1758130698763,2.22700177,234.82,234.77,4.25944559]
[1758130699075,0.69,234.81,234.77,4.25944559]
[1758130699452,2.22700177,234.81,234.76,4.96964998]
[1758130699651,0.69,234.8,234.76,4.25964998]
[1758130700165,1.53700177,234.81,234.76,4.25964998]
[1758130700166,0.69,234.79,234.76,4.25964998]
[1758130700367,0.69,234.79,234.75,4.25983429]
[1758130700574,0.69,234.79,234.75,4.96983429]
[1758130701154,1.53700177,234.8,234.76,0.71]
[1758130701365,0.69,234.81,234.76,4.25954511]
[1758130701558,1.53700177,234.84,234.77,0.71]
[1758130701877,2.22700177,234.85,234.77,2.24700177]
[1758130702054,2.22700177,234.85,234.78,0.71]
[1758130702252,2.22700177,234.85,234.78,2.24700177]
[1758130702863,6.48508922,234.85,234.78,2.24700177]
[1758130703055,2.22700177,234.84,234.78,0.71]
[1758130703261,6.48536899,234.84,234.78,4.25930658]
[1758130703463,0.69,234.83,234.78,4.25930658]
[1758130703673,0.69,234.82,234.78,4.25930658]
[1758130704281,0.69,234.82,234.77,4.259488]
[1758130704578,0.69,234.82,234.77,4.969488]
[1758130704958,0.69,234.82,234.77,4.259488]
[1758130705166,1.53700177,234.83,234.78,0.71]
[1758130705353,0.69,234.83,234.78,0.71]
[1758130705768,1.53700177,234.82,234.74,0.71]
[1758130705970,1.53700177,234.8,234.74,0.71]
[1758130706170,2.22700177,234.8,234.74,0.71]
[1758130706360,2.22700177,234.8,234.75,4.2598509]
[1758130706567,2.22700177,234.8,234.75,4.9698509]
[1758130706764,0.69,234.79,234.75,4.9698509]
[1758130706961,0.69,234.79,234.73,4.26007989]
[1758130707275,0.69,234.78,234.73,4.26007989]
[1758130707481,0.69,234.78,234.73,4.97007989]
[1758130707869,0.69,234.78,234.73,4.26007989]
[1758130708065,5.79600276,234.8,234.74,4.96994587]
[1758130708066,6.48600276,234.8,234.74,4.96994587]
[1758130708381,0.69,234.79,234.74,4.96994587]
[1758130708564,0.69,234.78,234.74,4.96994587]
[1758130709071,5.79595851,234.8,234.74,4.96994587]
[1758130709072,6.48595851,234.8,234.74,4.96994587]
[1758130710085,2.86969178,234.83,234.74,4.96994587]
[1758130710086,1.53700177,234.81,234.75,0.71]
[1758130710965,5.79577458,234.81,234.75,0.71]
[1758130711194,6.48577458,234.81,234.75,0.71]
[1758130711367,1.53700177,234.8,234.74,4.25994587]
[1758130711681,2.22700177,234.8,234.74,4.96994587]
[1758130711882,1.53700177,234.8,234.75,0.71]
[1758130712067,1.53700177,234.8,234.76,0.71]
[1758130712378,30.94836141,234.84,234.76,0.71]
[1758130712563,1.53700177,234.82,234.76,2.24700177]
[1758130712764,0.69,234.83,234.76,2.24700177]
[1758130713086,1.53700177,234.82,234.76,2.24700177]
[1758130713387,2.22700177,234.83,234.76,2.24700177]
[1758130713875,2.22700177,234.83,234.77,4.259488]
[1758130714054,1.53700177,234.82,234.76,4.96965654]
[1758130714255,1.53700177,234.81,234.76,4.96965654]
[1758130714460,2.23700177,234.81,234.76,4.25965654]
[1758130715079,1.53700177,234.79,234.73,0.71]
[1758130715673,2.23700177,234.79,234.73,0.71]
[1758130715974,6.49614692,234.79,234.73,4.97009957]
[1758130717388,2.23700177,234.81,234.74,2.24700177]
[1758130717569,2.23700177,234.81,234.75,0.71]
[1758130718293,58.92,234.84,234.75,2.24700177]
[1758130718294,1.53700177,234.82,234.75,2.24700177]
[1758130718475,1.53700177,234.82,234.76,4.96966944]
[1758130718679,33.62,234.84,234.77,2.24700177]
[1758130719001,35.15700177,234.84,234.77,2.24700177]
[1758130719291,2.23700177,234.83,234.77,0.71]
[1758130719466,1.53700177,234.82,234.77,0.71]
[1758130719670,0.7,234.83,234.76,4.25966944]
[1758130719671,1.53700177,234.8,234.76,4.25966944]
[1758130719880,2.23700177,234.8,234.76,4.25966944]
[1758130720263,37.20831042,234.84,234.77,0.71]
[1758130720264,1.53700177,234.81,234.77,0.71]
[1758130720464,1.53700177,234.81,234.77,4.96934792]
[1758130720671,1.53700177,234.82,234.77,4.96934792]
[1758130720989,2.23700177,234.81,234.77,4.25934792]
[1758130721194,1.53700177,234.81,234.78,0.71]
[1758130721371,1.53700177,234.82,234.78,0.71]
[1758130721786,6.49542766,234.83,234.78,4.96930136]
[1758130721992,0.7,234.83,234.79,0.71]
[1758130722187,6.49540264,234.83,234.78,4.25930136]
[1758130722492,2.23700177,234.83,234.79,0.71]
[1758130722687,2.23700177,234.83,234.78,4.25930136]
[1758130723181,2.23700177,234.83,234.78,4.96930136]
[1758130723386,2.23700177,234.83,234.76,1.53700177]
[1758130723588,1.53700177,234.83,234.79,0.71]
[1758130724489,6.52523993,234.84,234.79,4.96910949]
[1758130724678,0.73,234.84,234.8,0.71]
[1758130724870,0.03,234.84,234.81,0.71]
[1758130725189,0.03,234.84,234.82,0.71]
[1758130725390,0.03,234.84,234.8,1.53700177]
[1758130725569,0.03,234.84,234.81,0.71]
[1758130726005,0.03,234.84,234.82,0.71]
[1758130726300,0.03,234.84,234.81,0.71]
[1758130726877,0.03,234.84,234.82,0.71]
[1758130727379,0.03,234.84,234.83,0.71]
[1758130728187,0.03,234.84,234.83,4.96839969]
[1758130728392,0.03,234.84,234.83,6.50540146]
[1758130728991,0.03,234.84,234.83,5.79540146]
[1758130729198,0.03,234.84,234.83,6.50540146]
[1758130734592,0.03,234.84,234.83,4.96839969]